Cogmind - Beta 14 @@@ ROGUE MODE // 2025.01.14 @ 08:07:11 Player: Wotf Result: Destroyed by X-62 Marksman with Pulse Rifle Performance ------------- Evolutions (2) 1000 Regions Visited (4) 800 Robots Destroyed (58) 290 Value Destroyed (1644) 1644 Prototype IDs (4) 80 Alien Tech Used (0) 0 Bonus (244) 244 TOTAL SCORE: 4058 Bonus ------- High Alert Combat Kills 205 Follower Combat Kills 39 Cogmind --------- Core Integrity 0/550 Matter 300/300 Energy 99/100 System Corruption 5% Temperature Cool (9) Movement Rolling (135) Ox3 Location -8/Materials Parts ------- > --- POWER (1) -------- (None) > --- PROPULSION (5) --- Light Treads Light Treads Armored Wheel > --- UTILITY (3) ------ High-capacity Storage Unit Structural Scanner > --- WEAPON (2) ------- Katana > --- INVENTORY (20) --- Compact Battery (200) Compact Battery (200) Medium Matter Pod (100) Machine Analyzer Visual Processing Unit Improved Sensor Array Hardened Medium Armor Plating Hardened Medium Armor Plating Improved Light Armor Plating Improved Light Armor Plating Improved Light Armor Plating Tractor Beam High-powered Tractor Beam Improved Light Cannon Gauss Cannon Gauss Cannon Gauss Cannon Grenade Launcher Heavy Flail Scythe Peak State ------------ > --- POWER ------------ Light Ion Engine > --- PROPULSION ------- Light Treads Armored Treads VSS Leg VSS Leg Armored Wheel > --- UTILITY ---------- High-capacity Storage Unit Structural Scanner Improved Light Armor Plating > --- WEAPON ----------- Gauss Cannon Katana > --- INVENTORY -------- VSS Leg Compact Battery Compact Battery Medium Matter Pod Machine Analyzer Visual Processing Unit Improved Sensor Array Improved Light Armor Plating Improved Light Armor Plating Improved Light Armor Plating Tractor Beam High-powered Tractor Beam Improved Light Cannon Gauss Cannon Gauss Cannon Gauss Cannon Grenade Launcher Heavy Flail Scythe [Rating: 30] Favorites ----------- Power Light Ion Engine Engine Light Ion Engine Power Core Light Nuclear Core Propulsion Wheel Treads Light Treads Leg VSS Leg Wheel Wheel Utility Structural Scanner Device Structural Scanner Storage Small Storage Unit Protection Light Armor Plating Weapon Light Assault Rifle Energy Gun Medium Laser Ballistic Gun Light Assault Rifle Ballistic Cannon Gauss Cannon Launcher Grenade Launcher Impact Weapon Heavy Flail Slashing Weapon Katana Build | -11 -10 -10 -10 -8 ------- Run | Yrd Mat Min Sub Mat Slots Evolved 4 | . . . . 4 Power . | . . . . . Propulsion 3 | . . . . 3 Utility 1 | . . . . 1 Weapon . | . . . . . Parts Attached 72 | 6 12 5 . 49 Power 10 | 1 3 1 . 5 Engine 9 | 1 3 1 . 4 Core 1 | . . . . 1 Reactor . | . . . . . Propulsion 25 | 2 3 1 . 19 Treads 16 | . . . . 16 Leg 2 | . . . . 2 Wheel 7 | 2 3 1 . 1 Hover . | . . . . . Flight . | . . . . . Utility 14 | 1 4 . . 9 Device 2 | . 1 . . 1 Storage 5 | 1 2 . . 2 Processor . | . . . . . Hackware . | . . . . . Protection 7 | . 1 . . 6 Artifact . | . . . . . Weapon 23 | 2 2 3 . 16 Energy Gun 1 | 1 . . . . Energy Cannon . | . . . . . Ballistic Gun 6 | 1 2 1 . 2 Ballistic Cannon 10 | . . . . 10 Launcher 4 | . . 2 . 2 Special Weapon . | . . . . . Impact Weapon 1 | . . . . 1 Slashing Weapon 1 | . . . . 1 Piercing Weapon . | . . . . . Special Melee Weapon . | . . . . . Unidentified Prototypes . | . . . . . Parts Lost 15 | . . 1 . 14 Power 4 | . . . . 4 Propulsion 7 | . . . . 7 Utility 2 | . . . . 2 Weapon 2 | . . 1 . 1 Highest Loss Streak 5 | . . 1 . 5 To Critical Strikes 1 | . . . . 1 Average Slot Usage (%) 96 | . 99 96 100 94 Engine 9 | . 14 12 14 7 Treads 15 | . . . . 25 Wheel 20 | . 28 28 28 14 Device 7 | . 4 14 14 7 Storage 12 | . 14 14 14 11 Protection 6 | . 9 . . 6 Ballistic Gun 11 | . 26 24 14 1 Ballistic Cannon 8 | . . . . 13 Slashing Weapon 1 | . . . . 2 Peak Build Rating 30 | 6 7 7 7 30 Average Rating 15 | 4 6 6 7 21 On Entrance 5 | . 6 7 7 7 Naked Turns . | . . . . . Heaviest Build 69 | 11 14 13 13 69 Greatest Support 80 | 20 26 20 20 80 Greatest Overweight (x) 5 | 1 . . . 5 Average Overweight (x) 1 | . . . . 2 Largest Inventory Capacity 20 | 8 8 8 8 20 Average Capacity 14 | 6 8 8 8 19 Most Carried 20 | 7 8 8 7 20 Average Carried 12 | 4 7 7 7 16 Final Capacity 20 | 8 8 8 8 20 Final Carried 20 | 7 8 7 7 20 Class Distribution -------------------- 92% | Mutant 7% | Scavenger-Mutant Dominant Class ---------------- Mutant | -10/Materials Mutant | -10/Mines Mutant | -10/Subcaves Mutant | -8/Materials Resources | -11 -10 -10 -10 -8 ----------- Run | Yrd Mat Min Sub Mat Matter Collected 2052 | 262 346 66 . 1378 Remotely . | . . . . . Salvage Created 1887 | 75 469 107 . 1236 Parts 104 | 1 20 11 . 72 Haulers Intercepted 1 | . . . . 1 Recyclers Shooed 3 | . 2 1 . . Parts Field Recycled . | . . . . . Retrieved Matter . | . . . . . Parts Self-Destructed . | . . . . . Prevented . | . . . . . Kills | -11 -10 -10 -10 -8 ------- Run | Yrd Mat Min Sub Mat Combat Hostiles Destroyed 42 | . 10 3 . 29 Melee 6 | . . . . 6 Guns 10 | . 10 . . . Cannons 19 | . . . . 19 AOE 7 | . . 3 . 4 Classes Destroyed 13 | 1 3 1 . 8 Worker 2 | . . 1 . 1 Builder 1 | . . . . 1 Hauler 1 | . . . . 1 Recycler 5 | 1 2 1 . 1 Mechanic 1 | . . . . 1 Operator 1 | . . . . 1 Watcher 5 | . 1 . . 4 Swarmer 15 | . 6 3 . 6 Grunt 11 | . 4 . . 7 Brawler 2 | . . . . 2 Duelist 1 | . . . . 1 Sentry 7 | . . . . 7 Specialist 6 | . . . . 6 Best Kill Streak 6 | 1 3 4 . 6 Combat Bots Only 4 | . 3 3 . 4 Max Kills in Single Turn 2 | 1 1 2 . 2 Gunslinging . | . . . . . Exploded 2 | . . 2 . 2 Melee 1 | . . . . 1 Uniques/NPCs Destroyed . | . . . . . Combat | -11 -10 -10 -10 -8 -------- Run | Yrd Mat Min Sub Mat Hostile Shots Fired 296 | . 56 10 1 229 Missed 82 | . 8 3 1 70 Damage Taken 3522 | . 488 170 . 2864 Core 772 | . 152 69 . 551 Absorbed by Shields . | . . . . . Regen/Repaired (Parts) 80 | . . . . 80 Core Remaining (%) 55 | 100 . . 11 . Volleys Fired 167 | 2 63 9 . 93 Largest 2 | 2 2 2 . 2 Hottest 96 | 70 40 50 . 96 Shots Fired 306 | 4 126 15 . 161 Gun 152 | 4 126 12 . 10 Cannon 148 | . . . . 148 Launcher 6 | . . 3 . 3 Special . | . . . . . Kinetic 298 | 2 126 12 . 158 Thermal 2 | 2 . . . . Explosive 6 | . . 3 . 3 Electromagnetic . | . . . . . Robot Hit Streak 13 | 3 13 5 . 8 Robot Miss Streak 8 | . 6 1 . 8 Penetration Max . | . . . . . Secondary Targets 2 | . 2 . . . Max Gunslinging Chain 1 | . 1 . . . Shots Hit Robots 184 | 3 73 7 . 101 Core Hits 83 | 2 28 6 . 47 Critical Kills 1 | . 1 . . . Critical Parts Destroyed . | . . . . . Critical Strikes 17 | . 1 . . 16 Destroy 1 | . 1 . . . Blast 11 | . . . . 11 Sever 5 | . . . . 5 Melee Attacks 26 | . . . . 26 Impact 1 | . . . . 1 Slashing 25 | . . . . 25 Piercing . | . . . . . Sneak Attacks 1 | . . . . 1 Combat Hostiles . | . . . . . Follow-up Attacks . | . . . . . Damage Inflicted 3926 | 34 630 244 . 3018 Guns 773 | 34 630 60 . 49 Cannons 1959 | . . . . 1959 Explosions 513 | . . 182 . 331 Melee 678 | . . . . 678 Ramming 3 | . . 2 . 1 Kinetic 2706 | 8 630 60 . 2008 Thermal 165 | 26 . . . 139 Explosive 374 | . . 182 . 192 Electromagnetic . | . . . . . Impact . | . . . . . Slashing 678 | . . . . 678 Piercing . | . . . . . Highest Corruption 5 | . 2 2 2 5 Average Corruption 2 | . 2 2 2 4 Corruption Purged . | . . . . . Corruption Blocked . | . . . . . Effects 9 | . 4 3 . 2 Message Errors 3 | . 2 1 . . Matter Fused 1 | . . 1 . . Heat Flow Errors 1 | . . . . 1 Energy Discharges 1 | . 1 . . . Data Loss (minor) 1 | . 1 . . . Data Loss (major) 1 | . . 1 . . Misfires 1 | . . . . 1 Overload Shots . | . . . . . Overflow Damage 109 | . . . . 109 Projectiles 6 | . . . . 6 Explosions 85 | . . . . 85 Melee 18 | . . . . 18 Knockbacks 16 | . . . . 16 Impact . | . . . . . Kinetic 14 | . . . . 14 Secondary 2 | . . . . 2 Self-Inflicted Damage 217 | . . 22 . 195 Shots 3 | . . 1 . 2 Rammed 2 | . . 1 . 1 Targets Rammed 2 | . . 1 . 1 Kicked . | . . . . . Crushed . | . . . . . Highest Temperature 424 | 40 57 19 . 424 Average Temperature 64 | 23 12 16 . 84 Received Heat Transfer 849 | . 156 18 . 675 Effects 6 | . . . . 6 Shutdowns 1 | . . . . 1 Energy Bleed 1 | . . . . 1 Interference 3 | . . . . 3 Matter Decay 1 | . . . . 1 Siege Activations . | . . . . . Robots Corrupted . | . . . . . Combat Hostiles . | . . . . . Parts Fried . | . . . . . Impact Corruptions . | . . . . . Robots Melted . | . . . . . Combat Hostiles . | . . . . . Parts Melted . | . . . . . Heat Transferred 174 | 74 . . . 100 Parts Sabotaged . | . . . . . Parts Stolen . | . . . . . Parts Stripped . | . . . . . Power Chain Reactions . | . . . . . Alert | -11 -10 -10 -10 -8 ------- Run | Yrd Mat Min Sub Mat Peak Influence 728 | 5 316 232 . 728 Initial 84 | . 3 84 . 53 Average 284 | . 142 179 . 381 Maximum Alert Level 3 | . 1 1 . 3 Low Security (%) 33 | 100 72 34 . 12 Level 1 41 | . 27 65 . 44 Level 2 23 | . . . . 39 Level 3 1 | . . . . 3 Level 4 . | . . . . . Level 5 . | . . . . . High Security . | . . . . . Max Security . | . . . . . Squads Dispatched 9 | . 1 . . 8 Investigation . | . . . . . Extermination . | . . . . . Reinforcement 7 | . 1 . . 6 Assault 2 | . . . . 2 Garrison . | . . . . . Intercept . | . . . . . Searches Triggered . | . . . . . Construction Impeded . | . . . . . Haulers Reinforced . | . . . . . Active Scanning Responses . | . . . . . Cargo Convoy Interrupts . | . . . . . Stealth | -11 -10 -10 -10 -8 --------- Run | Yrd Mat Min Sub Mat Distress Signals 4 | . 2 1 . 1 Communications Jammed . | . . . . . Distress Signals . | . . . . . Times Spotted 90 | . 23 9 2 56 Peak Tracking Total 8 | . 8 5 2 7 Tactical Retreats 11 | . 3 2 . 6 Traps | -11 -10 -10 -10 -8 ------- Run | Yrd Mat Min Sub Mat Traps Triggered 5 | . 1 . . 4 Indirectly . | . . . . . Trap Hack Attempts . | . . . . . Triggered . | . . . . . Disarmed . | . . . . . Reprogrammed . | . . . . . Reused . | . . . . . Traps Extracted . | . . . . . Installed . | . . . . . Triggered . | . . . . . Machines | -11 -10 -10 -10 -8 ---------- Run | Yrd Mat Min Sub Mat Machines Disabled 4 | . . . . 4 Max in Single Turn 2 | . . . . 2 Garrison Access 1 | . . . . 1 Machines Repaired . | . . . . . Machines Dismantled . | . . . . . Machines Sabotaged . | . . . . . Overloaded Fab Kills . | . . . . . Hacking | -11 -10 -10 -10 -8 --------- Run | Yrd Mat Min Sub Mat Machines Accessed 7 | . 4 . . 3 Terminals 5 | . 4 . . 1 Fabricators . | . . . . . Repair Stations 1 | . . . . 1 Recycling Units . | . . . . . Scanalyzers . | . . . . . Garrison Access 1 | . . . . 1 Total Hacks 17 | . 7 . . 10 Successful 9 | . 4 . . 5 Failed 8 | . 3 . . 5 Catastrophic 1 | . 1 . . . Database Lockouts . | . . . . . Manual 1 | . 1 . . . Terminals 11 | . 7 . . 4 Fabricators . | . . . . . Repair Stations 2 | . . . . 2 Recycling Units . | . . . . . Scanalyzers . | . . . . . Garrison Access 4 | . . . . 4 Terminal Hacks 6 | . 4 . . 2 Record 1 | . 1 . . . Prototype ID Bank 2 | . 1 . . 1 Emergency Access Points 1 | . . . . 1 Terminal Index 1 | . 1 . . . Dispatch Records 1 | . 1 . . . Fabricator Hacks . | . . . . . Repair Station Hacks 2 | . . . . 2 Scan Component 1 | . . . . 1 Repair 1 | . . . . 1 Recycling Unit Hacks . | . . . . . Scanalyzer . | . . . . . Garrison Access Hacks 1 | . . . . 1 Seal Access 1 | . . . . 1 Unauthorized Hacks . | . . . . . Terminals . | . . . . . Fabricators . | . . . . . Repair Stations . | . . . . . Recycling Units . | . . . . . Scanalyzers . | . . . . . Garrison Access . | . . . . . Data Cores Recovered . | . . . . . Used . | . . . . . Hacking Detections 6 | . 4 . . 2 Full Trace Events . | . . . . . Feedback Events . | . . . . . Feedback Blocked . | . . . . . Robot Schematics Acquired . | . . . . . Robots Built . | . . . . . Authchips . | . . . . . Time . | . . . . . Total Robot Build Rating . | . . . . . Part Schematics Acquired . | . . . . . Parts Built . | . . . . . Authchips . | . . . . . Time . | . . . . . Total Part Build Rating . | . . . . . Parts Repaired 1 | . . . . 1 Time 26 | . . . . 26 Parts Recycled . | . . . . . Recycled Matter . | . . . . . Retrieved Matter . | . . . . . Retrieved Components . | . . . . . Parts Scanalyzed . | . . . . . Part Schematics Acquired . | . . . . . Parts Damaged . | . . . . . Bothacking | -11 -10 -10 -10 -8 ------------ Run | Yrd Mat Min Sub Mat Used RIF Installer . | . . . . . Robots Hacked . | . . . . . Non-combat . | . . . . . Combat . | . . . . . Robot Hacks Applied . | . . . . . Relay Couplers Released . | . . . . . Fabnet Peak Effective % . | . . . . . Robots Rewired . | . . . . . Allies Hacked . | . . . . . Hacks Repelled . | . . . . . Allies | -11 -10 -10 -10 -8 -------- Run | Yrd Mat Min Sub Mat Total Allies 2 | . . 2 . . Largest Group 2 | . . 2 . . Highest-Rated Group 49 | . . 49 . . Highest-Rated Ally 31 | . . 31 . . Total Orders . | . . . . . Ally Attacks 10 | . . 10 . . Total Damage 108 | . . 108 . . Kills 1 | . . 1 . . Allies Corrupted . | . . . . . Allies Melted . | . . . . . Intel | -11 -10 -10 -10 -8 ------- Run | Yrd Mat Min Sub Mat Robot Analysis Total . | . . . . . Derelict Logs Recovered . | . . . . . Drone Launches . | . . . . . Drone Recoveries . | . . . . . Exploration | -11 -10 -10 -10 -8 ------------- Run | Yrd Mat Min Sub Mat Turns Passed 2333 | 61 618 254 46 1354 Spaces Moved 1533 | 49 501 265 58 660 Core 8 | 8 . . . . Treads 48 | . . . . 48 Legs 1 | . . . . 1 Wheels 1476 | 41 501 265 58 611 Hover . | . . . . . Flight . | . . . . . Fastest Speed 50 | 50 80 80 80 80 Average Speed 103 | 80 82 80 80 132 Slowest Speed 450 | 100 90 80 80 450 Overloaded Moves . | . . . . . Propulsion Burnouts . | . . . . . Robots Hopped . | . . . . . Cave-ins Triggered . | . . . . . Exploration Rate (%) 36 | 4 66 48 6 58 Regions Visited 4 Branch Regions 2 Pre-discovered Areas . | . . . . . Known Exits Taken . | . . . . . Unknown Exits Taken 4 | 1 1 1 1 . Scrap Searched . | . . . . . Spaces Dug 6 | . . 5 . 1 Terrain Destroyed 126 | . . 12 . 114 Melee 1 | . . . . 1 Projectile 65 | . . . . 65 AOE 60 | . . 12 . 48 Terrain Rammed . | . . . . . Walls Destroyed . | . . . . . Machines Disabled . | . . . . . Actions | -11 -10 -10 -10 -8 --------- Run | Yrd Mat Min Sub Mat Total 1972 | 63 609 293 57 950 Wait 91 | . 16 12 . 63 Move 1529 | 48 500 264 57 660 Hop . | . . . . . Pick Up 45 | 7 6 . . 32 Fast Attach 23 | 6 1 1 . 15 Attach 11 | . . 1 . 10 Detach 2 | . . . . 2 Swap 38 | . 11 3 . 24 Drop 38 | . 12 2 . 24 Fire 167 | 2 63 9 . 93 Melee 26 | . . . . 26 Ram 2 | . . 1 . 1 Kick . | . . . . . Crush . | . . . . . Escape Stasis . | . . . . . Rewire . | . . . . . Trap . | . . . . . Miscellaneous . | . . . . . Route ------- -11/Scrapyard -10/Materials (discovered 2 exits: [*Mat] / [*Min]) -10/Mines (discovered 2 exits: [*Mat] / [*Sub]) -10/Subcaves -8/Materials (discovered 1 exit: [*Fac]) History --------- Turn | Location | Event 16 | -11/Scrapyard | Discovered new exit (range 13) 62 | -11/Scrapyard | Entered Materials 320 | -10/Materials | Build established: Mutant 523 | -10/Materials | Discovered new exit (range 3) 583 | -10/Materials | Core integrity fell below 50% 635 | -10/Materials | Discovered new exit (range 8) 680 | -10/Materials | Entered Mines 725 | -10/Mines | Discovered new exit (range 12) 828 | -10/Mines | Assembled infested the area 833 | -10/Mines | Assisted by a Guerilla fighting off Assembled 902 | -10/Mines | Discovered new exit (range 8) 929 | -10/Mines | Core integrity fell below 20% 934 | -10/Mines | Entered Subcaves 970 | -10/Subcaves | Discovered new exit (range 14) 980 | -10/Subcaves | Entered Materials 980 | -8/Materials | Evolved 4 slots: Propulsion x3, Utility x1 1238 | -8/Materials | Repaired Lgt. Armor Plating 1890 | -8/Materials | Lost 5 parts (1p4n) 1990 | -8/Materials | Core integrity fell below 50% 2180 | -8/Materials | First assault squad dispatched 2313 | -8/Materials | Discovered new exit (range 5) 2322 | -8/Materials | Core integrity fell below 20% 2334 | -8/Materials | Destroyed by X-62 Marksman with Pulse Rifle Last Messages --------------- 02299_ Critical hit (Burn: +37). 02300_ X-57 Shotgunner destroyed. 02303_ Acquired 66 matter. 02308_ Acquired 62 matter. 02309_ Acquired 55 matter. 02311_ Critical hit (Burn: +37). 02313_ EXIT=FOUND 02316_ G-47 Trooper Aluminum Leg severed. 02329_ Triggered Explosive Trap. 02329_ An explosion rips through the floor. 02330_ Penetrated by Slug. 02330_ Arm. Treads destroyed. 02330_ Rnf. Ion Engine blasted off. 02332_ Knocked back. 02332_ Lgt. Treads destroyed. 02334_ Penetrated by Slug. 02334_ Gauss Cannon destroyed. 02334_ Knocked back. 02334_ Penetrated by Slug. 02334_ Terminal disabled. Map ----- +----------------------------------------------------+ | #### # ??????????## ^##??????????? # # ?? | | ##### ##???????????##^^ ##??????????? # # ?? | | ##### ##???????????## ##??????????? # ##?? | | ### ##???????????## ##??????????? # # ?? | | """"# ##???????????## ##????######### + ?? | | # ##???????????## ############### # ?? | | " ############### ######## [[ # # ?? | | ! " ############### # /# [! # # ?? | | / # = + [! # # ?? | | #"""! =# # #### | | """ """ !#""" # # #### | | " """ """ ! #""" # + # | | " "%% %%" [+ # # + | | " = [ ############### # | | """"" /! # ##### # ! | | ## %* / # ##?## # ! | | #### ! ! # """ "" ##?## # ! | | #### + """ """ ##?## # | | ??## / [ # "" """ # ### # | | ??## ##########+###=!!# "" """ ##### + | | ??############## ^ #= # """ ##### # | | ??#########???## #[[ #[ ##### # | | ??????????????## "" # ###### ######### =# / | | ??????????????## " #%!=%= ##### = # | | ??????????????## "" ^ ; %% b H ##?## = *+ ! | | ??????????????## # k@ =%= g ##?## ####[ | | ??????????????########### # g ;;###?##=#### | | ??????????????########### ## ######[#### | | ???????????????????### ## ##] """=x=######!#### ## | | ???????????????????###"## ## """%*%#%##!"=####### | | ????????????????????# ""# ##/ "" *%=/! [!=%!* # | | ???????????????????## "S# ## * %=#%#"=%+##### # | | ???????????????????##"" #+##%%""" !%#### != # # | | ??????????????????? ?? % #% """ #### = + # | | ????????????????????????? + """ #### ### | | ????????????????????????? # #### ### | | ????????????????????????? ############# ##? | | ???????????????????????????######################? | | | | | | | | | | | | | | | | | | | | | | | | | +----------------------------------------------------+ Best States ------------- Heat Dissipation 31 Energy Generation 14 Energy Capacity 275 Matter Stores 300 Matter Capacity 300 Sight Range 16 Terrain Scan Density 10 Armor Coverage 300 Evasion (%) 44 Recoil Reduction 4 Item Schematics ----------------- None Robot Schematics ------------------ None Fabricated ------------ Nothing Alien Tech Used ----------------- None Achievements -------------- None Challenges ------------ None Game ------ Seed ThiefAccelerationModule Manual? 0 Play Time 00:46:39 Cumulative 55.1 hours Start 2024.10.14 @ 21:33:43 End 2025.01.14 @ 08:07:11 Sessions 13 Manual Loads 0 Difficulty Rogue Special Mode None Game No. 42 Rogue 30 Adventurer 12 Explorer 0 Win Type - Total 1 Types 1/0/0/0/0/0/0/0/0 Lore% 21 Gallery% 29 Achievement% 30 Wizard Run 0 Options --------- Layout 0 ASCII 0 Keyboard 0 Movement Numpad Keybinds 0 Fullscreen 2 Font 18/SmallcapsGlow Map View 76x50 Zoom Use 9% Tactical HUD 1 Map Filters NONE Filters NONE Steam 1 RUN: 0f99d294-1526-4778-8977-9a8f1cf45506